[Event "Titled Tuesday Blitz November 29 Late 2022"]
[White "Foerster-Yialamas, Lucas"]
[Black "Santos Flores, Alberto"]
[WhiteFideId "30901774"]
[BlackFideId "3601234"]
[WhiteElo "2067"]
[BlackElo "2235"]
[Result "0-1"]
[Round "08"]
[TimeControl "180+1"]
[Date "2022.11.30"]
[WhiteClock "0:00:01"]
[BlackClock "0:00:52"]

1. e4 {[%clk 0:01:50]}  c5 {[%clk 0:02:56]} 2. c4 {[%clk 0:01:47]}  Nc6 {[%clk 0:02:56]} 3. Nc3 {[%clk 0:01:47]}  g6 {[%clk 0:02:55]} 4. g3 {[%clk 0:01:46]}  Bg7 {[%clk 0:02:54]} 5. Bg2 {[%clk 0:01:47]}  e6 {[%clk 0:02:55]} 6. Nge2 {[%clk 0:01:47]}  Nge7 {[%clk 0:02:55]} 7. d3 {[%clk 0:01:47]}  O-O {[%clk 0:02:52]} 8. Be3 {[%clk 0:01:45]}  Nd4 {[%clk 0:02:51]} 9. Qd2 {[%clk 0:01:42]}  b6 {[%clk 0:02:49]} 10. h4 {[%clk 0:01:41]}  Bb7 {[%clk 0:02:48]} 11. Bh6 {[%clk 0:01:37]}  Nc2+ {[%clk 0:02:17]} 12. Qxc2 {[%clk 0:01:11]}  Bxh6 {[%clk 0:02:16]} 13. h5 {[%clk 0:01:11]}  Bg7 {[%clk 0:02:16]} 14. hxg6 {[%clk 0:01:09]}  hxg6 {[%clk 0:02:15]} 15. f4 {[%clk 0:01:10]}  d5 {[%clk 0:02:12]} 16. exd5 {[%clk 0:01:08]}  exd5 {[%clk 0:02:11]} 17. O-O-O {[%clk 0:01:08]}  Qd7 {[%clk 0:02:08]} 18. Nxd5 {[%clk 0:00:55]}  Nxd5 {[%clk 0:02:07]} 19. Bxd5 {[%clk 0:00:56]}  Bxd5 {[%clk 0:02:07]} 20. cxd5 {[%clk 0:00:56]}  Qxd5 {[%clk 0:02:06]} 21. Nc3 {[%clk 0:00:57]}  Qf3 {[%clk 0:02:03]} 22. Qh2 {[%clk 0:00:55]}  Rfe8 {[%clk 0:02:00]} 23. Ne4 {[%clk 0:00:37]}  c4 {[%clk 0:01:47]} 24. Qh7+ {[%clk 0:00:20]}  Kf8 {[%clk 0:01:45]} 25. Nd6 {[%clk 0:00:20]}  Red8 {[%clk 0:01:23]} 26. Nxc4 {[%clk 0:00:19]}  Rxd3 {[%clk 0:01:20]} 27. Qh3 {[%clk 0:00:11]}  Rad8 {[%clk 0:01:08]} 28. Rxd3 {[%clk 0:00:04]}  Qxd3 {[%clk 0:01:09]} 29. Qf1 {[%clk 0:00:04]}  Qxf1+ {[%clk 0:01:05]} 30. Rxf1 {[%clk 0:00:05]}  Rc8 {[%clk 0:01:04]} 31. b3 {[%clk 0:00:05]}  b5 {[%clk 0:01:04]} 32. Rd1 {[%clk 0:00:04]}  bxc4 {[%clk 0:01:04]} 33. bxc4 {[%clk 0:00:05]}  Rxc4+ {[%clk 0:01:03]} 34. Kb1 {[%clk 0:00:06]}  Rc3 {[%clk 0:01:02]} 35. Rd7 {[%clk 0:00:04]}  Rxg3 {[%clk 0:00:59]} 36. Rxa7 {[%clk 0:00:04]}  Rf3 {[%clk 0:01:00]} 37. Ra4 {[%clk 0:00:03]}  Bh6 {[%clk 0:00:58]} 38. Ra8+ {[%clk 0:00:01]}  Kg7 {[%clk 0:00:57]} 39. a4 {[%clk 0:00:01]}  Rxf4 {[%clk 0:00:57]} 40. a5 {[%clk 0:00:02]}  Ra4 {[%clk 0:00:56]} 41. a6 {[%clk 0:00:02]}  Be3 {[%clk 0:00:54]} 42. Kc2 {[%clk 0:00:01]}  g5 {[%clk 0:00:54]} 43. Kd3 {[%clk 0:00:01]}  Bf4 {[%clk 0:00:52]} 0-1


[Site "https://www.chess.com"]

[Event "Titled Tuesday Blitz November 29 Late 2022"]
[White "Gasparyan, David"]
[Black "Kleiman, Jake"]
[WhiteFideId "13311980"]
[BlackFideId "2020041"]
[WhiteElo "2377"]
[BlackElo "2618"]
[Result "0-1"]
[Round "08"]
[TimeControl "180+1"]
[Date "2022.11.30"]
[WhiteClock "0:00:10"]
[BlackClock "0:00:14"]

1. e3 {[%clk 0:03:00]}  d5 {[%clk 0:02:51]} 2. d4 {[%clk 0:02:58]}  e6 {[%clk 0:02:50]} 3. Bd3 {[%clk 0:02:58]}  Nf6 {[%clk 0:02:51]} 4. c3 {[%clk 0:02:57]}  b6 {[%clk 0:02:52]} 5. f4 {[%clk 0:02:58]}  Be7 {[%clk 0:02:52]} 6. Nf3 {[%clk 0:02:59]}  O-O {[%clk 0:02:52]} 7. O-O {[%clk 0:02:59]}  Ba6 {[%clk 0:02:50]} 8. Bxa6 {[%clk 0:02:57]}  Nxa6 {[%clk 0:02:51]} 9. Qd3 {[%clk 0:02:56]}  Nb8 {[%clk 0:02:49]} 10. Nbd2 {[%clk 0:02:56]}  c5 {[%clk 0:02:48]} 11. Ne5 {[%clk 0:02:56]}  Qc7 {[%clk 0:02:47]} 12. Ndf3 {[%clk 0:02:42]}  Nfd7 {[%clk 0:02:40]} 13. f5 {[%clk 0:02:23]}  Nc6 {[%clk 0:02:24]} 14. Nxd7 {[%clk 0:02:09]}  Qxd7 {[%clk 0:02:23]} 15. g4 {[%clk 0:02:01]}  Bd6 {[%clk 0:02:14]} 16. Bd2 {[%clk 0:01:43]}  e5 {[%clk 0:02:02]} 17. dxe5 {[%clk 0:01:20]}  Nxe5 {[%clk 0:01:52]} 18. Qxd5 {[%clk 0:01:19]}  Nxg4 {[%clk 0:01:37]} 19. Kh1 {[%clk 0:01:19]}  Nf6 {[%clk 0:01:27]} 20. Qc4 {[%clk 0:01:14]}  Qxf5 {[%clk 0:01:21]} 21. Qh4 {[%clk 0:00:45]}  Qe4 {[%clk 0:01:12]} 22. Qg5 {[%clk 0:00:37]}  Rae8 {[%clk 0:01:00]} 23. Qg2 {[%clk 0:00:30]}  g6 {[%clk 0:00:57]} 24. Rg1 {[%clk 0:00:28]}  Re7 {[%clk 0:00:49]} 25. Raf1 {[%clk 0:00:28]}  Nh5 {[%clk 0:00:44]} 26. Be1 {[%clk 0:00:25]}  Be5 {[%clk 0:00:34]} 27. Bh4 {[%clk 0:00:24]}  Re6 {[%clk 0:00:32]} 28. Bg5 {[%clk 0:00:19]}  Bg7 {[%clk 0:00:30]} 29. Qh3 {[%clk 0:00:19]}  Rd6 {[%clk 0:00:24]} 30. Rg4 {[%clk 0:00:19]}  Qe6 {[%clk 0:00:21]} 31. e4 {[%clk 0:00:19]}  Rd3 {[%clk 0:00:17]} 32. Qg2 {[%clk 0:00:17]}  Nf6 {[%clk 0:00:15]} 33. Bxf6 {[%clk 0:00:16]}  Bxf6 {[%clk 0:00:16]} 34. e5 {[%clk 0:00:15]}  Bg7 {[%clk 0:00:14]} 35. Re4 {[%clk 0:00:14]}  h6 {[%clk 0:00:14]} 36. Qe2 {[%clk 0:00:13]}  Rfd8 {[%clk 0:00:14]} 37. Re1 {[%clk 0:00:09]}  b5 {[%clk 0:00:13]} 38. Rf4 {[%clk 0:00:09]}  a6 {[%clk 0:00:13]} 39. Qe4 {[%clk 0:00:09]}  Kh7 {[%clk 0:00:12]} 40. Rf1 {[%clk 0:00:10]}  R8d7 {[%clk 0:00:12]} 41. Rh4 {[%clk 0:00:10]}  Qd5 {[%clk 0:00:11]} 42. Ng5+ {[%clk 0:00:08]}  Kg8 {[%clk 0:00:11]} 43. Qxd5 {[%clk 0:00:09]}  R3xd5 {[%clk 0:00:12]} 44. e6 {[%clk 0:00:09]}  fxe6 {[%clk 0:00:12]} 45. Nxe6 {[%clk 0:00:10]}  Rf7 {[%clk 0:00:11]} 46. Re1 {[%clk 0:00:09]}  Re7 {[%clk 0:00:11]} 47. Rhe4 {[%clk 0:00:08]}  Bf6 {[%clk 0:00:11]} 48. Nf4 {[%clk 0:00:08]}  Rxe4 {[%clk 0:00:10]} 49. Rxe4 {[%clk 0:00:09]}  Rd2 {[%clk 0:00:09]} 50. Re2 {[%clk 0:00:08]}  Rxe2 {[%clk 0:00:10]} 51. Nxe2 {[%clk 0:00:09]}  Kf7 {[%clk 0:00:10]} 52. Kg2 {[%clk 0:00:10]}  Ke6 {[%clk 0:00:10]} 53. Nf4+ {[%clk 0:00:10]}  Kf5 {[%clk 0:00:10]} 54. Nd5 {[%clk 0:00:11]}  Bd8 {[%clk 0:00:10]} 55. Kf3 {[%clk 0:00:10]}  g5 {[%clk 0:00:10]} 56. Ne3+ {[%clk 0:00:10]}  Ke5 {[%clk 0:00:10]} 57. Ng4+ {[%clk 0:00:10]}  Kd5 {[%clk 0:00:10]} 58. Nxh6 {[%clk 0:00:11]}  Kc4 {[%clk 0:00:11]} 59. Nf7 {[%clk 0:00:11]}  Bf6 {[%clk 0:00:10]} 60. Nd6+ {[%clk 0:00:11]}  Kd3 {[%clk 0:00:10]} 61. Ne4 {[%clk 0:00:12]}  Be7 {[%clk 0:00:10]} 62. h3 {[%clk 0:00:10]}  c4 {[%clk 0:00:10]} 63. Nf2+ {[%clk 0:00:09]}  Kc2 {[%clk 0:00:10]} 64. Kg4 {[%clk 0:00:06]}  Kxb2 {[%clk 0:00:10]} 65. Ne4 {[%clk 0:00:07]}  Kxa2 {[%clk 0:00:10]} 66. Nxg5 {[%clk 0:00:08]}  b4 {[%clk 0:00:10]} 67. Ne4 {[%clk 0:00:06]}  b3 {[%clk 0:00:09]} 68. h4 {[%clk 0:00:07]}  b2 {[%clk 0:00:09]} 69. Nd2 {[%clk 0:00:08]}  Bxh4 {[%clk 0:00:09]} 70. Kxh4 {[%clk 0:00:07]}  b1=Q {[%clk 0:00:10]} 71. Nxb1 {[%clk 0:00:07]}  Kxb1 {[%clk 0:00:11]} 72. Kg4 {[%clk 0:00:08]}  Kc2 {[%clk 0:00:12]} 73. Kf4 {[%clk 0:00:09]}  Kxc3 {[%clk 0:00:12]} 74. Ke4 {[%clk 0:00:10]}  a5 {[%clk 0:00:13]} 75. Ke3 {[%clk 0:00:10]}  a4 {[%clk 0:00:14]} 76. Ke4 {[%clk 0:00:10]}  a3 {[%clk 0:00:14]} 0-1


[Site "https://www.chess.com"]

[Event "Titled Tuesday Blitz November 29 Late 2022"]
[White "Gonzalez, Francisco Silva"]
[Black "Tomaszewski, Kacper"]
[WhiteFideId "1512285"]
[BlackFideId "1127373"]
[WhiteElo "2159"]
[BlackElo "2211"]
[Result "1-0"]
[Round "08"]
[TimeControl "180+1"]
[Date "2022.11.30"]
[WhiteClock "0:00:39"]
[BlackClock "0:00:06"]

1. d4 {[%clk 0:02:55]}  d6 {[%clk 0:02:59]} 2. e4 {[%clk 0:02:55]}  Nf6 {[%clk 0:02:59]} 3. f3 {[%clk 0:02:55]}  e5 {[%clk 0:02:58]} 4. d5 {[%clk 0:02:55]}  Be7 {[%clk 0:02:58]} 5. c4 {[%clk 0:02:55]}  O-O {[%clk 0:02:57]} 6. Be3 {[%clk 0:02:56]}  c5 {[%clk 0:02:54]} 7. Nc3 {[%clk 0:02:54]}  Nh5 {[%clk 0:02:52]} 8. Qd2 {[%clk 0:02:53]}  h6 {[%clk 0:02:47]} 9. Bd3 {[%clk 0:02:48]}  Bg5 {[%clk 0:02:45]} 10. O-O-O {[%clk 0:02:47]}  Bxe3 {[%clk 0:02:44]} 11. Qxe3 {[%clk 0:02:48]}  a6 {[%clk 0:02:41]} 12. Nge2 {[%clk 0:02:46]}  b5 {[%clk 0:02:41]} 13. cxb5 {[%clk 0:02:47]}  Nd7 {[%clk 0:02:40]} 14. a4 {[%clk 0:02:45]}  axb5 {[%clk 0:02:36]} 15. Bxb5 {[%clk 0:02:44]}  Nb6 {[%clk 0:02:34]} 16. b3 {[%clk 0:02:43]}  Ba6 {[%clk 0:02:32]} 17. Qd3 {[%clk 0:02:42]}  Bxb5 {[%clk 0:02:21]} 18. Qxb5 {[%clk 0:02:41]}  c4 {[%clk 0:02:19]} 19. b4 {[%clk 0:02:39]}  Qg5+ {[%clk 0:02:10]} 20. Kc2 {[%clk 0:02:39]}  Rfb8 {[%clk 0:02:08]} 21. Qc6 {[%clk 0:02:24]}  Qe3 {[%clk 0:01:56]} 22. g4 {[%clk 0:02:15]}  Nf6 {[%clk 0:01:51]} 23. a5 {[%clk 0:02:02]}  Nbd7 {[%clk 0:01:44]} 24. Qxc4 {[%clk 0:02:00]}  Qxf3 {[%clk 0:01:37]} 25. h3 {[%clk 0:01:58]}  Rc8 {[%clk 0:01:24]} 26. Qd3 {[%clk 0:01:58]}  Qxe4 {[%clk 0:01:19]} 27. Qxe4 {[%clk 0:01:56]}  Nxe4 {[%clk 0:01:20]} 28. Rhf1 {[%clk 0:01:50]}  Ndf6 {[%clk 0:01:13]} 29. Kd3 {[%clk 0:01:48]}  Nxc3 {[%clk 0:01:06]} 30. Nxc3 {[%clk 0:01:48]}  e4+ {[%clk 0:01:04]} 31. Kd4 {[%clk 0:01:46]}  Rab8 {[%clk 0:01:00]} 32. Rb1 {[%clk 0:01:46]}  Nd7 {[%clk 0:00:47]} 33. Nxe4 {[%clk 0:01:39]}  Rc2 {[%clk 0:00:39]} 34. Nxd6 {[%clk 0:01:36]}  f6 {[%clk 0:00:36]} 35. Rfe1 {[%clk 0:01:19]}  Ne5 {[%clk 0:00:34]} 36. Rxe5 {[%clk 0:01:15]}  fxe5+ {[%clk 0:00:32]} 37. Kxe5 {[%clk 0:01:15]}  Rf8 {[%clk 0:00:25]} 38. a6 {[%clk 0:01:13]}  Re2+ {[%clk 0:00:22]} 39. Kd4 {[%clk 0:01:13]}  Rf4+ {[%clk 0:00:22]} 40. Kc5 {[%clk 0:01:14]}  Rc2+ {[%clk 0:00:20]} 41. Kb5 {[%clk 0:01:12]}  Ra2 {[%clk 0:00:16]} 42. Rc1 {[%clk 0:01:04]}  Kf8 {[%clk 0:00:16]} 43. Rc8+ {[%clk 0:01:03]}  Ke7 {[%clk 0:00:16]} 44. Nf5+ {[%clk 0:01:01]}  Kd7 {[%clk 0:00:16]} 45. Rc6 {[%clk 0:00:57]}  Rb2 {[%clk 0:00:14]} 46. Rc4 {[%clk 0:00:55]}  Rxc4 {[%clk 0:00:08]} 47. Kxc4 {[%clk 0:00:55]}  Kc7 {[%clk 0:00:07]} 48. Nxg7 {[%clk 0:00:51]}  Kb6 {[%clk 0:00:07]} 49. Nf5 {[%clk 0:00:49]}  h5 {[%clk 0:00:07]} 50. gxh5 {[%clk 0:00:48]}  Rh2 {[%clk 0:00:08]} 51. h4 {[%clk 0:00:48]}  Rf2 {[%clk 0:00:08]} 52. Nd4 {[%clk 0:00:45]}  Rf4 {[%clk 0:00:07]} 53. d6 {[%clk 0:00:45]}  Rxh4 {[%clk 0:00:06]} 54. d7 {[%clk 0:00:39]}  Kc7 {[%clk 0:00:06]} 55. a7 {[%clk 0:00:39]} 1-0


[Site "https://www.chess.com"]

[Event "Titled Tuesday Blitz November 29 Late 2022"]
[White "Graif, William"]
[Black "Coelho, Ramyres Santana"]
[WhiteFideId "2609835"]
[BlackFideId "2120690"]
[WhiteElo "2205"]
[BlackElo "1888"]
[Result "1-0"]
[Round "08"]
[TimeControl "180+1"]
[Date "2022.11.30"]
[WhiteClock "0:00:17"]
[BlackClock "0:00:32"]

1. e4 {[%clk 0:03:00]}  c5 {[%clk 0:02:59]} 2. Nc3 {[%clk 0:02:58]}  e6 {[%clk 0:02:54]} 3. Nge2 {[%clk 0:02:57]}  d5 {[%clk 0:02:53]} 4. exd5 {[%clk 0:02:56]}  exd5 {[%clk 0:02:54]} 5. d4 {[%clk 0:02:57]}  Nf6 {[%clk 0:02:51]} 6. g3 {[%clk 0:02:56]}  Be7 {[%clk 0:02:50]} 7. Bg2 {[%clk 0:02:55]}  O-O {[%clk 0:02:51]} 8. O-O {[%clk 0:02:55]}  c4 {[%clk 0:02:51]} 9. Bg5 {[%clk 0:02:53]}  Be6 {[%clk 0:02:50]} 10. Nf4 {[%clk 0:02:51]}  h6 {[%clk 0:02:49]} 11. Bxf6 {[%clk 0:02:51]}  Bxf6 {[%clk 0:02:48]} 12. Ncxd5 {[%clk 0:02:36]}  Bxd5 {[%clk 0:02:37]} 13. Nxd5 {[%clk 0:02:16]}  Nc6 {[%clk 0:02:34]} 14. c3 {[%clk 0:02:10]}  Re8 {[%clk 0:02:25]} 15. Qf3 {[%clk 0:01:50]}  Qd6 {[%clk 0:02:18]} 16. Nxf6+ {[%clk 0:01:46]}  Qxf6 {[%clk 0:02:18]} 17. Qxf6 {[%clk 0:01:46]}  gxf6 {[%clk 0:02:19]} 18. Rfe1 {[%clk 0:01:45]}  Na5 {[%clk 0:02:16]} 19. Kf1 {[%clk 0:01:40]}  Kf8 {[%clk 0:02:15]} 20. Bd5 {[%clk 0:01:28]}  Rxe1+ {[%clk 0:02:09]} 21. Rxe1 {[%clk 0:01:28]}  Re8 {[%clk 0:02:10]} 22. Rxe8+ {[%clk 0:01:06]}  Kxe8 {[%clk 0:02:11]} 23. b4 {[%clk 0:00:48]}  cxb3 {[%clk 0:02:07]} 24. axb3 {[%clk 0:00:48]}  Ke7 {[%clk 0:01:25]} 25. b4 {[%clk 0:00:42]}  Kd6 {[%clk 0:01:21]} 26. Bf3 {[%clk 0:00:19]}  Nc4 {[%clk 0:01:16]} 27. Bxb7 {[%clk 0:00:19]}  f5 {[%clk 0:01:07]} 28. Ke2 {[%clk 0:00:19]}  Nb6 {[%clk 0:01:05]} 29. Kd3 {[%clk 0:00:19]}  h5 {[%clk 0:01:02]} 30. c4 {[%clk 0:00:19]}  Nd7 {[%clk 0:01:02]} 31. c5+ {[%clk 0:00:18]}  Kc7 {[%clk 0:01:03]} 32. Bf3 {[%clk 0:00:18]}  Nf6 {[%clk 0:01:02]} 33. d5 {[%clk 0:00:17]}  Kd7 {[%clk 0:00:58]} 34. h4 {[%clk 0:00:17]}  Kc7 {[%clk 0:00:57]} 35. Kd4 {[%clk 0:00:17]}  Nd7 {[%clk 0:00:54]} 36. Bxh5 {[%clk 0:00:16]}  Nb8 {[%clk 0:00:51]} 37. Bxf7 {[%clk 0:00:16]}  Na6 {[%clk 0:00:51]} 38. Kc4 {[%clk 0:00:16]}  Nb8 {[%clk 0:00:50]} 39. h5 {[%clk 0:00:17]}  Nd7 {[%clk 0:00:49]} 40. Kd4 {[%clk 0:00:17]}  Nf6 {[%clk 0:00:50]} 41. h6 {[%clk 0:00:16]}  Kd7 {[%clk 0:00:48]} 42. Bg6 {[%clk 0:00:16]}  f4 {[%clk 0:00:47]} 43. gxf4 {[%clk 0:00:16]}  Ke7 {[%clk 0:00:45]} 44. h7 {[%clk 0:00:16]}  Nxh7 {[%clk 0:00:44]} 45. Bxh7 {[%clk 0:00:17]}  a5 {[%clk 0:00:44]} 46. Be4 {[%clk 0:00:18]}  axb4 {[%clk 0:00:42]} 47. Kc4 {[%clk 0:00:18]}  b3 {[%clk 0:00:41]} 48. Kxb3 {[%clk 0:00:19]}  Kd8 {[%clk 0:00:40]} 49. Kc4 {[%clk 0:00:19]}  Kc7 {[%clk 0:00:40]} 50. d6+ {[%clk 0:00:20]}  Kd8 {[%clk 0:00:41]} 51. c6 {[%clk 0:00:19]}  Kc8 {[%clk 0:00:40]} 52. Bf5+ {[%clk 0:00:19]}  Kb8 {[%clk 0:00:38]} 53. c7+ {[%clk 0:00:19]}  Ka7 {[%clk 0:00:36]} 54. c8=Q {[%clk 0:00:18]}  Kb6 {[%clk 0:00:36]} 55. Qc5+ {[%clk 0:00:17]}  Ka6 {[%clk 0:00:33]} 56. Qb5+ {[%clk 0:00:16]}  Ka7 {[%clk 0:00:33]} 57. Bg4 {[%clk 0:00:15]}  Ka8 {[%clk 0:00:32]} 58. Bf3+ {[%clk 0:00:16]}  Ka7 {[%clk 0:00:32]} 59. Qb7# {[%clk 0:00:17]} 1-0


[Site "https://www.chess.com"]

[Event "Titled Tuesday Blitz November 29 Late 2022"]
[White "Gubajdullin, Alexei"]
[Black "Tirelli, Mauro"]
[WhiteFideId "4141202"]
[BlackFideId "845353"]
[WhiteElo "2230"]
[BlackElo "2166"]
[Result "1-0"]
[Round "08"]
[TimeControl "180+1"]
[Date "2022.11.30"]
[WhiteClock "0:01:51"]
[BlackClock "0:00:40"]

1. Nf3 {[%clk 0:03:00]}  c5 {[%clk 0:02:59]} 2. g3 {[%clk 0:03:00]}  Nc6 {[%clk 0:02:59]} 3. Bg2 {[%clk 0:03:00]}  g6 {[%clk 0:02:58]} 4. O-O {[%clk 0:03:00]}  Bg7 {[%clk 0:02:58]} 5. c3 {[%clk 0:02:58]}  d5 {[%clk 0:02:56]} 6. d4 {[%clk 0:02:57]}  Nf6 {[%clk 0:02:55]} 7. dxc5 {[%clk 0:02:56]}  a5 {[%clk 0:02:53]} 8. Na3 {[%clk 0:02:55]}  O-O {[%clk 0:02:52]} 9. Be3 {[%clk 0:02:54]}  Ng4 {[%clk 0:02:43]} 10. Bg5 {[%clk 0:02:51]}  h6 {[%clk 0:02:42]} 11. Bd2 {[%clk 0:02:49]}  e5 {[%clk 0:02:35]} 12. Nb5 {[%clk 0:02:47]}  Qe7 {[%clk 0:02:29]} 13. Nd6 {[%clk 0:02:38]}  Be6 {[%clk 0:02:27]} 14. e4 {[%clk 0:02:37]}  b6 {[%clk 0:02:19]} 15. exd5 {[%clk 0:02:33]}  Bxd5 {[%clk 0:02:19]} 16. c4 {[%clk 0:02:33]}  Be6 {[%clk 0:02:09]} 17. Nh4 {[%clk 0:02:28]}  Qd7 {[%clk 0:01:49]} 18. Qa4 {[%clk 0:02:12]}  e4 {[%clk 0:00:58]} 19. Bxe4 {[%clk 0:02:10]}  Nge5 {[%clk 0:00:55]} 20. f4 {[%clk 0:02:05]}  f5 {[%clk 0:00:53]} 21. Bd5 {[%clk 0:02:01]}  Ng4 {[%clk 0:00:43]} 22. Qxc6 {[%clk 0:01:58]}  Bd4+ {[%clk 0:00:43]} 23. Kg2 {[%clk 0:01:53]}  Bxc5 {[%clk 0:00:40]} 24. Qxd7 {[%clk 0:01:51]} 1-0


[Site "https://www.chess.com"]

[Event "Titled Tuesday Blitz November 29 Late 2022"]
[White "Hambleton, Aman"]
[Black "Poliakova, Varvara"]
[WhiteFideId "2606577"]
[BlackFideId "13518313"]
[WhiteElo "2538"]
[BlackElo "2099"]
[Result "0-1"]
[Round "08"]
[TimeControl "180+1"]
[Date "2022.11.30"]
[WhiteClock "0:00:01"]
[BlackClock "0:01:24"]

1. d4 {[%clk 0:03:00]}  f5 {[%clk 0:02:58]} 2. c4 {[%clk 0:03:00]}  d6 {[%clk 0:02:53]} 3. Nf3 {[%clk 0:02:49]}  Nf6 {[%clk 0:02:52]} 4. Nc3 {[%clk 0:02:37]}  g6 {[%clk 0:02:51]} 5. Bg5 {[%clk 0:02:36]}  Bg7 {[%clk 0:02:52]} 6. Qc2 {[%clk 0:02:34]}  O-O {[%clk 0:02:52]} 7. O-O-O {[%clk 0:02:12]}  Nc6 {[%clk 0:02:51]} 8. e3 {[%clk 0:02:06]}  a5 {[%clk 0:02:35]} 9. a3 {[%clk 0:01:56]}  Kh8 {[%clk 0:02:08]} 10. h4 {[%clk 0:01:53]}  h6 {[%clk 0:02:04]} 11. Nd5 {[%clk 0:01:02]}  Ng4 {[%clk 0:01:51]} 12. Bf4 {[%clk 0:00:51]}  e6 {[%clk 0:01:48]} 13. Nc3 {[%clk 0:00:46]}  Qe7 {[%clk 0:01:47]} 14. Nh2 {[%clk 0:00:23]}  e5 {[%clk 0:01:46]} 15. dxe5 {[%clk 0:00:23]}  dxe5 {[%clk 0:01:46]} 16. Bg3 {[%clk 0:00:23]}  Nxh2 {[%clk 0:01:45]} 17. Bxh2 {[%clk 0:00:22]}  Be6 {[%clk 0:01:45]} 18. Nd5 {[%clk 0:00:22]}  Qf7 {[%clk 0:01:44]} 19. Be2 {[%clk 0:00:17]}  Rad8 {[%clk 0:01:43]} 20. Rd2 {[%clk 0:00:13]}  Rd7 {[%clk 0:01:43]} 21. Rhd1 {[%clk 0:00:13]}  Rfd8 {[%clk 0:01:44]} 22. Qb3 {[%clk 0:00:07]}  b6 {[%clk 0:01:38]} 23. Bf3 {[%clk 0:00:07]}  Ne7 {[%clk 0:01:35]} 24. Nxe7 {[%clk 0:00:05]}  Qxe7 {[%clk 0:01:35]} 25. Rxd7 {[%clk 0:00:02]}  Rxd7 {[%clk 0:01:36]} 26. Rxd7 {[%clk 0:00:02]}  Qxd7 {[%clk 0:01:37]} 27. h5 {[%clk 0:00:02]}  e4 {[%clk 0:01:37]} 28. Be2 {[%clk 0:00:02]}  g5 {[%clk 0:01:36]} 29. Qd1 {[%clk 0:00:02]}  Qf7 {[%clk 0:01:32]} 30. b3 {[%clk 0:00:01]}  Qf6 {[%clk 0:01:31]} 31. Qc2 {[%clk 0:00:01]}  Qa1+ {[%clk 0:01:30]} 32. Kd2 {[%clk 0:00:02]}  Qxa3 {[%clk 0:01:30]} 33. Bxc7 {[%clk 0:00:02]}  Qb4+ {[%clk 0:01:30]} 34. Kd1 {[%clk 0:00:03]}  b5 {[%clk 0:01:27]} 35. Kc1 {[%clk 0:00:02]}  a4 {[%clk 0:01:26]} 36. bxa4 {[%clk 0:00:02]}  bxa4 {[%clk 0:01:27]} 37. c5 {[%clk 0:00:01]}  a3 {[%clk 0:01:24]} 0-1


[Site "https://www.chess.com"]

[Event "Titled Tuesday Blitz November 29 Late 2022"]
[White "Han, Yichen"]
[Black "Lopez Mulet, Inigo"]
[WhiteFideId "1054430"]
[BlackFideId "22235620"]
[WhiteElo "2323"]
[BlackElo "2289"]
[Result "1-0"]
[Round "08"]
[TimeControl "180+1"]
[Date "2022.11.30"]
[WhiteClock "0:00:11"]
[BlackClock "0:00:20"]

1. d4 {[%clk 0:03:00]}  Nf6 {[%clk 0:02:55]} 2. c4 {[%clk 0:03:00]}  c5 {[%clk 0:02:53]} 3. d5 {[%clk 0:03:00]}  e5 {[%clk 0:02:50]} 4. Nc3 {[%clk 0:02:54]}  d6 {[%clk 0:02:49]} 5. e4 {[%clk 0:02:49]}  Be7 {[%clk 0:02:45]} 6. f4 {[%clk 0:02:49]}  exf4 {[%clk 0:02:44]} 7. Bxf4 {[%clk 0:02:50]}  Bg4 {[%clk 0:02:44]} 8. Nf3 {[%clk 0:02:48]}  Nh5 {[%clk 0:02:41]} 9. Be3 {[%clk 0:02:46]}  Nd7 {[%clk 0:02:41]} 10. Be2 {[%clk 0:02:34]}  O-O {[%clk 0:02:41]} 11. Qd2 {[%clk 0:02:27]}  a6 {[%clk 0:02:25]} 12. O-O {[%clk 0:02:23]}  f5 {[%clk 0:02:15]} 13. Ng5 {[%clk 0:01:49]}  Bxg5 {[%clk 0:02:15]} 14. Bxg5 {[%clk 0:01:49]}  Qa5 {[%clk 0:02:05]} 15. exf5 {[%clk 0:01:44]}  Nhf6 {[%clk 0:01:57]} 16. Bxf6 {[%clk 0:01:31]}  Nxf6 {[%clk 0:01:57]} 17. Rae1 {[%clk 0:01:28]}  Rae8 {[%clk 0:01:52]} 18. a3 {[%clk 0:01:13]}  Re5 {[%clk 0:01:46]} 19. Bxg4 {[%clk 0:01:05]}  Nxg4 {[%clk 0:01:47]} 20. Qf4 {[%clk 0:01:01]}  Rxe1 {[%clk 0:01:41]} 21. Rxe1 {[%clk 0:01:02]}  Ne5 {[%clk 0:01:41]} 22. Rf1 {[%clk 0:00:59]}  Qb6 {[%clk 0:01:39]} 23. Qg5 {[%clk 0:00:46]}  Qxb2 {[%clk 0:01:04]} 24. f6 {[%clk 0:00:44]}  Rxf6 {[%clk 0:01:04]} 25. Rxf6 {[%clk 0:00:40]}  Qxc3 {[%clk 0:01:03]} 26. Rf1 {[%clk 0:00:36]}  h6 {[%clk 0:00:45]} 27. Qd8+ {[%clk 0:00:37]}  Kh7 {[%clk 0:00:45]} 28. Qxd6 {[%clk 0:00:37]}  Qd4+ {[%clk 0:00:44]} 29. Kh1 {[%clk 0:00:35]}  Qxc4 {[%clk 0:00:45]} 30. Re1 {[%clk 0:00:24]}  Nd3 {[%clk 0:00:45]} 31. Rf1 {[%clk 0:00:14]}  Ne5 {[%clk 0:00:37]} 32. Rd1 {[%clk 0:00:12]}  Qe2 {[%clk 0:00:32]} 33. Rb1 {[%clk 0:00:07]}  c4 {[%clk 0:00:31]} 34. Qe6 {[%clk 0:00:06]}  Qd3 {[%clk 0:00:29]} 35. Re1 {[%clk 0:00:05]}  Ng4 {[%clk 0:00:29]} 36. Qe2 {[%clk 0:00:04]}  Qf5 {[%clk 0:00:19]} 37. d6 {[%clk 0:00:03]}  Nf6 {[%clk 0:00:18]} 38. Rf1 {[%clk 0:00:03]}  Qd5 {[%clk 0:00:18]} 39. Rd1 {[%clk 0:00:02]}  Qc6 {[%clk 0:00:17]} 40. Qc2+ {[%clk 0:00:03]}  Kg8 {[%clk 0:00:15]} 41. Qf5 {[%clk 0:00:03]}  Nd7 {[%clk 0:00:13]} 42. Qe6+ {[%clk 0:00:04]}  Kh7 {[%clk 0:00:13]} 43. Qf5+ {[%clk 0:00:04]}  Kg8 {[%clk 0:00:13]} 44. Re1 {[%clk 0:00:04]}  Nf6 {[%clk 0:00:13]} 45. Qe6+ {[%clk 0:00:04]}  Kh7 {[%clk 0:00:13]} 46. Rf1 {[%clk 0:00:03]}  Qd7 {[%clk 0:00:10]} 47. Qxd7 {[%clk 0:00:03]}  Nxd7 {[%clk 0:00:11]} 48. Rf7 {[%clk 0:00:03]}  Nc5 {[%clk 0:00:11]} 49. Rc7 {[%clk 0:00:03]}  Ne6 {[%clk 0:00:11]} 50. d7 {[%clk 0:00:03]}  b5 {[%clk 0:00:10]} 51. Rc8 {[%clk 0:00:03]}  a5 {[%clk 0:00:11]} 52. Kg1 {[%clk 0:00:03]}  Kg6 {[%clk 0:00:11]} 53. Kf2 {[%clk 0:00:03]}  Kf6 {[%clk 0:00:11]} 54. d8=Q+ {[%clk 0:00:04]}  Nxd8 {[%clk 0:00:12]} 55. Rxd8 {[%clk 0:00:05]}  Ke5 {[%clk 0:00:13]} 56. Rb8 {[%clk 0:00:05]}  b4 {[%clk 0:00:13]} 57. axb4 {[%clk 0:00:05]}  axb4 {[%clk 0:00:14]} 58. Rxb4 {[%clk 0:00:05]}  Kd4 {[%clk 0:00:14]} 59. Ke2 {[%clk 0:00:05]}  Kc5 {[%clk 0:00:15]} 60. Rb8 {[%clk 0:00:05]}  g5 {[%clk 0:00:15]} 61. Kd2 {[%clk 0:00:06]}  Kd4 {[%clk 0:00:16]} 62. Rd8+ {[%clk 0:00:05]}  Ke5 {[%clk 0:00:16]} 63. Kc3 {[%clk 0:00:06]}  Kf6 {[%clk 0:00:17]} 64. Kxc4 {[%clk 0:00:06]}  Kg6 {[%clk 0:00:18]} 65. Rd1 {[%clk 0:00:06]}  h5 {[%clk 0:00:19]} 66. Kd3 {[%clk 0:00:07]}  Kf5 {[%clk 0:00:19]} 67. Ke3 {[%clk 0:00:08]}  Kg4 {[%clk 0:00:20]} 68. Kf2 {[%clk 0:00:09]}  Kh4 {[%clk 0:00:20]} 69. Rd4+ {[%clk 0:00:09]}  g4 {[%clk 0:00:21]} 70. g3+ {[%clk 0:00:09]}  Kh3 {[%clk 0:00:19]} 71. Rd5 {[%clk 0:00:10]}  h4 {[%clk 0:00:19]} 72. Rh5 {[%clk 0:00:10]}  Kxh2 {[%clk 0:00:20]} 73. Rxh4# {[%clk 0:00:11]} 1-0


[Site "https://www.chess.com"]